[Event "Titled Tuesday Blitz December 13 Late 2022"]
[White "Boruchovsky, Avital"]
[Black "Jumanov, Elbek"]
[WhiteFideId "2800055"]
[BlackFideId "14202905"]
[WhiteElo "2816"]
[BlackElo "2440"]
[Result "1-0"]
[Round "01"]
[TimeControl "180+1"]
[Date "2022.12.14"]
[WhiteClock "0:00:11"]
[BlackClock "0:00:03"]

1. Nf3 {[%clk 0:02:58]}  Nf6 {[%clk 0:02:59]} 2. c4 {[%clk 0:02:57]}  c5 {[%clk 0:02:59]} 3. Nc3 {[%clk 0:02:55]}  Nc6 {[%clk 0:02:59]} 4. d4 {[%clk 0:02:54]}  cxd4 {[%clk 0:02:58]} 5. Nxd4 {[%clk 0:02:55]}  g6 {[%clk 0:02:58]} 6. e4 {[%clk 0:02:55]}  d6 {[%clk 0:02:58]} 7. Be2 {[%clk 0:02:54]}  Bg7 {[%clk 0:02:58]} 8. Be3 {[%clk 0:02:55]}  O-O {[%clk 0:02:58]} 9. O-O {[%clk 0:02:54]}  Bd7 {[%clk 0:02:59]} 10. f3 {[%clk 0:02:50]}  Rc8 {[%clk 0:02:58]} 11. Qd2 {[%clk 0:02:48]}  a6 {[%clk 0:02:58]} 12. Rac1 {[%clk 0:02:45]}  Re8 {[%clk 0:02:57]} 13. b3 {[%clk 0:02:45]}  Qa5 {[%clk 0:02:49]} 14. Rb1 {[%clk 0:02:15]}  Qc7 {[%clk 0:02:33]} 15. Kh1 {[%clk 0:02:12]}  Qb8 {[%clk 0:02:32]} 16. a4 {[%clk 0:02:01]}  Nb4 {[%clk 0:01:59]} 17. Rfd1 {[%clk 0:01:53]}  Red8 {[%clk 0:01:50]} 18. Bf1 {[%clk 0:01:52]}  Be8 {[%clk 0:01:50]} 19. Qf2 {[%clk 0:01:32]}  e6 {[%clk 0:01:39]} 20. Nde2 {[%clk 0:01:20]}  Nd7 {[%clk 0:01:33]} 21. Rbc1 {[%clk 0:00:53]}  Nc5 {[%clk 0:01:29]} 22. Nd4 {[%clk 0:00:40]}  e5 {[%clk 0:01:16]} 23. Nc2 {[%clk 0:00:39]}  Nxc2 {[%clk 0:01:00]} 24. Qxc2 {[%clk 0:00:34]}  b5 {[%clk 0:00:53]} 25. axb5 {[%clk 0:00:32]}  axb5 {[%clk 0:00:52]} 26. Nxb5 {[%clk 0:00:30]}  Bxb5 {[%clk 0:00:28]} 27. cxb5 {[%clk 0:00:31]}  f5 {[%clk 0:00:26]} 28. b4 {[%clk 0:00:26]}  Nd7 {[%clk 0:00:17]} 29. Qb3+ {[%clk 0:00:21]}  Kh8 {[%clk 0:00:17]} 30. Rxc8 {[%clk 0:00:21]}  Rxc8 {[%clk 0:00:17]} 31. exf5 {[%clk 0:00:18]}  gxf5 {[%clk 0:00:16]} 32. Qe6 {[%clk 0:00:18]}  Nf6 {[%clk 0:00:11]} 33. Qxd6 {[%clk 0:00:17]}  Qb7 {[%clk 0:00:09]} 34. b6 {[%clk 0:00:14]}  e4 {[%clk 0:00:07]} 35. f4 {[%clk 0:00:13]}  Ng4 {[%clk 0:00:07]} 36. Qd8+ {[%clk 0:00:09]}  Rxd8 {[%clk 0:00:06]} 37. Rxd8+ {[%clk 0:00:10]}  Bf8 {[%clk 0:00:06]} 38. Bd4+ {[%clk 0:00:10]}  Kg8 {[%clk 0:00:03]} 39. Bc4+ {[%clk 0:00:10]}  Qf7 {[%clk 0:00:03]} 40. Bxf7+ {[%clk 0:00:10]}  Kxf7 {[%clk 0:00:04]} 41. Rxf8+ {[%clk 0:00:10]}  Kxf8 {[%clk 0:00:03]} 42. b7 {[%clk 0:00:11]} 1-0


[Site "https://www.chess.com"]

[Event "Titled Tuesday Blitz December 13 Late 2022"]
[White "Bryant, Todd"]
[Black "Rosen, Eric"]
[WhiteFideId "2031299"]
[BlackFideId "2032562"]
[WhiteElo "2326"]
[BlackElo "2362"]
[Result "1-0"]
[Round "01"]
[TimeControl "180+1"]
[Date "2022.12.14"]
[WhiteClock "0:00:04"]
[BlackClock "0:00:01"]

1. e4 {[%clk 0:02:54]}  c5 {[%clk 0:02:59]} 2. Nf3 {[%clk 0:02:52]}  d6 {[%clk 0:02:58]} 3. d4 {[%clk 0:02:53]}  Nf6 {[%clk 0:02:59]} 4. Nc3 {[%clk 0:02:51]}  cxd4 {[%clk 0:02:59]} 5. Nxd4 {[%clk 0:02:52]}  g6 {[%clk 0:02:59]} 6. Be3 {[%clk 0:02:52]}  Bg7 {[%clk 0:03:00]} 7. f3 {[%clk 0:02:52]}  a6 {[%clk 0:02:57]} 8. Qd2 {[%clk 0:02:47]}  h5 {[%clk 0:02:57]} 9. Bc4 {[%clk 0:02:43]}  b5 {[%clk 0:02:57]} 10. Bb3 {[%clk 0:02:43]}  Bb7 {[%clk 0:02:57]} 11. O-O-O {[%clk 0:02:40]}  Nbd7 {[%clk 0:02:57]} 12. Bg5 {[%clk 0:02:31]}  Qc7 {[%clk 0:02:56]} 13. Rhe1 {[%clk 0:02:30]}  Rb8 {[%clk 0:02:44]} 14. f4 {[%clk 0:02:05]}  b4 {[%clk 0:02:17]} 15. Nd5 {[%clk 0:01:58]}  Nxd5 {[%clk 0:01:53]} 16. exd5 {[%clk 0:01:59]}  Nf6 {[%clk 0:01:52]} 17. f5 {[%clk 0:01:50]}  Bxd5 {[%clk 0:01:31]} 18. Bxf6 {[%clk 0:01:39]}  Bxf6 {[%clk 0:01:22]} 19. Bxd5 {[%clk 0:01:24]}  Qc5 {[%clk 0:01:18]} 20. Nc6 {[%clk 0:01:14]}  Rb7 {[%clk 0:00:51]} 21. fxg6 {[%clk 0:01:02]}  fxg6 {[%clk 0:00:45]} 22. Re6 {[%clk 0:00:52]}  Rc7 {[%clk 0:00:36]} 23. Rde1 {[%clk 0:00:48]}  Kd7 {[%clk 0:00:12]} 24. Kb1 {[%clk 0:00:32]}  Rxc6 {[%clk 0:00:10]} 25. Bxc6+ {[%clk 0:00:29]}  Kxc6 {[%clk 0:00:11]} 26. Qd3 {[%clk 0:00:23]}  Kb6 {[%clk 0:00:06]} 27. R6e4 {[%clk 0:00:12]}  Rc8 {[%clk 0:00:05]} 28. c3 {[%clk 0:00:05]}  a5 {[%clk 0:00:05]} 29. Rc1 {[%clk 0:00:03]}  h4 {[%clk 0:00:04]} 30. b3 {[%clk 0:00:03]}  bxc3 {[%clk 0:00:03]} 31. Rc4 {[%clk 0:00:03]}  Qf5 {[%clk 0:00:01]} 32. Qxf5 {[%clk 0:00:02]}  gxf5 {[%clk 0:00:01]} 33. Rxc8 {[%clk 0:00:03]}  d5 {[%clk 0:00:01]} 34. R8xc3 {[%clk 0:00:03]}  Bxc3 {[%clk 0:00:01]} 35. Rxc3 {[%clk 0:00:04]} 1-0


[Site "https://www.chess.com"]

[Event "Titled Tuesday Blitz December 13 Late 2022"]
[White "Campelo, Leandro Fabricio"]
[Black "Al-Tarboush, Ward"]
[WhiteFideId "2103346"]
[BlackFideId "7601450"]
[WhiteElo "2070"]
[BlackElo "2263"]
[Result "0-1"]
[Round "01"]
[TimeControl "180+1"]
[Date "2022.12.14"]
[WhiteClock "0:00:50"]
[BlackClock "0:01:03"]

1. e4 {[%clk 0:02:38]}  c5 {[%clk 0:02:59]} 2. Nf3 {[%clk 0:02:37]}  Nc6 {[%clk 0:02:59]} 3. d4 {[%clk 0:02:38]}  cxd4 {[%clk 0:03:00]} 4. Nxd4 {[%clk 0:02:37]}  Nf6 {[%clk 0:03:01]} 5. Nc3 {[%clk 0:02:36]}  e5 {[%clk 0:03:01]} 6. Ndb5 {[%clk 0:02:36]}  d6 {[%clk 0:03:01]} 7. Bg5 {[%clk 0:02:35]}  a6 {[%clk 0:03:01]} 8. Na3 {[%clk 0:02:35]}  b5 {[%clk 0:03:01]} 9. Bxf6 {[%clk 0:02:35]}  gxf6 {[%clk 0:03:00]} 10. Nd5 {[%clk 0:02:36]}  f5 {[%clk 0:03:00]} 11. Bd3 {[%clk 0:02:36]}  Be6 {[%clk 0:02:50]} 12. c3 {[%clk 0:02:36]}  Bg7 {[%clk 0:02:49]} 13. Nxb5 {[%clk 0:02:32]}  axb5 {[%clk 0:02:37]} 14. Bxb5 {[%clk 0:02:31]}  Bd7 {[%clk 0:02:15]} 15. O-O {[%clk 0:02:30]}  Rb8 {[%clk 0:01:56]} 16. a4 {[%clk 0:02:27]}  Ne7 {[%clk 0:01:53]} 17. Bxd7+ {[%clk 0:02:14]}  Qxd7 {[%clk 0:01:54]} 18. Nxe7 {[%clk 0:02:14]}  Qxe7 {[%clk 0:01:51]} 19. b4 {[%clk 0:02:05]}  fxe4 {[%clk 0:01:47]} 20. Qd5 {[%clk 0:02:01]}  O-O {[%clk 0:01:45]} 21. Qxe4 {[%clk 0:01:54]}  Qe6 {[%clk 0:01:45]} 22. Rfd1 {[%clk 0:01:47]}  Rfc8 {[%clk 0:01:45]} 23. Ra3 {[%clk 0:01:35]}  f5 {[%clk 0:01:33]} 24. Qd5 {[%clk 0:01:31]}  Qxd5 {[%clk 0:01:33]} 25. Rxd5 {[%clk 0:01:29]}  Rxb4 {[%clk 0:01:29]} 26. g3 {[%clk 0:01:23]}  Rbc4 {[%clk 0:01:28]} 27. a5 {[%clk 0:01:22]}  Rxc3 {[%clk 0:01:25]} 28. Rxc3 {[%clk 0:01:21]}  Rxc3 {[%clk 0:01:26]} 29. Rxd6 {[%clk 0:01:21]}  Ra3 {[%clk 0:01:26]} 30. a6 {[%clk 0:01:21]}  e4 {[%clk 0:01:15]} 31. h4 {[%clk 0:01:16]}  h5 {[%clk 0:01:11]} 32. Kg2 {[%clk 0:01:13]}  Ra2 {[%clk 0:01:09]} 33. Kf1 {[%clk 0:01:10]}  Kh7 {[%clk 0:01:05]} 34. Rd5 {[%clk 0:00:55]}  Kg6 {[%clk 0:01:04]} 35. Rd6+ {[%clk 0:00:54]}  Bf6 {[%clk 0:01:04]} 36. Ke1 {[%clk 0:00:51]}  f4 {[%clk 0:01:04]} 37. gxf4 {[%clk 0:00:50]}  Kf5 {[%clk 0:01:04]} 38. Rd5+ {[%clk 0:00:50]}  Kxf4 {[%clk 0:01:04]} 39. Rxh5 {[%clk 0:00:50]}  Rxa6 {[%clk 0:01:03]} 40. Rh6 {[%clk 0:00:50]}  Bc3+ {[%clk 0:01:03]} 0-1


[Site "https://www.chess.com"]

[Event "Titled Tuesday Blitz December 13 Late 2022"]
[White "Chlpik, Martin"]
[Black "Aguilar, Juan"]
[WhiteFideId "14923351"]
[BlackFideId "3800091"]
[WhiteElo "2109"]
[BlackElo "2539"]
[Result "0-1"]
[Round "01"]
[TimeControl "180+1"]
[Date "2022.12.14"]
[WhiteClock "0:00:01"]
[BlackClock "0:00:18"]

1. d4 {[%clk 0:02:49]}  Nf6 {[%clk 0:02:59]} 2. c4 {[%clk 0:02:48]}  g6 {[%clk 0:02:59]} 3. Nc3 {[%clk 0:02:39]}  d5 {[%clk 0:03:00]} 4. cxd5 {[%clk 0:02:36]}  Nxd5 {[%clk 0:02:58]} 5. e4 {[%clk 0:02:36]}  Nxc3 {[%clk 0:02:58]} 6. bxc3 {[%clk 0:02:37]}  Bg7 {[%clk 0:02:58]} 7. Be3 {[%clk 0:02:37]}  O-O {[%clk 0:02:55]} 8. Qd2 {[%clk 0:02:37]}  Nc6 {[%clk 0:02:49]} 9. Bc4 {[%clk 0:02:29]}  e5 {[%clk 0:02:46]} 10. Ne2 {[%clk 0:02:20]}  exd4 {[%clk 0:02:32]} 11. cxd4 {[%clk 0:02:19]}  Re8 {[%clk 0:02:30]} 12. f3 {[%clk 0:02:17]}  Qh4+ {[%clk 0:02:24]} 13. Bf2 {[%clk 0:02:15]}  Qe7 {[%clk 0:02:19]} 14. O-O {[%clk 0:02:15]}  Rd8 {[%clk 0:02:17]} 15. Rad1 {[%clk 0:02:04]}  b6 {[%clk 0:02:10]} 16. Qf4 {[%clk 0:02:02]}  h6 {[%clk 0:01:24]} 17. Bd5 {[%clk 0:01:31]}  Bb7 {[%clk 0:01:14]} 18. Rc1 {[%clk 0:01:19]}  Rd6 {[%clk 0:01:09]} 19. Rfd1 {[%clk 0:00:49]}  Rad8 {[%clk 0:01:04]} 20. Bb3 {[%clk 0:00:44]}  Na5 {[%clk 0:01:01]} 21. e5 {[%clk 0:00:35]}  R6d7 {[%clk 0:01:00]} 22. h4 {[%clk 0:00:14]}  Nxb3 {[%clk 0:00:58]} 23. axb3 {[%clk 0:00:14]}  a5 {[%clk 0:00:56]} 24. Ng3 {[%clk 0:00:10]}  Bd5 {[%clk 0:00:49]} 25. h5 {[%clk 0:00:11]}  Bxb3 {[%clk 0:00:45]} 26. Ne4 {[%clk 0:00:10]}  Bxd1 {[%clk 0:00:43]} 27. Rxd1 {[%clk 0:00:10]}  a4 {[%clk 0:00:36]} 28. Nf6+ {[%clk 0:00:09]}  Bxf6 {[%clk 0:00:32]} 29. exf6 {[%clk 0:00:09]}  Qd6 {[%clk 0:00:32]} 30. Qxh6 {[%clk 0:00:07]}  Qxf6 {[%clk 0:00:32]} 31. Be3 {[%clk 0:00:06]}  Rd5 {[%clk 0:00:26]} 32. hxg6 {[%clk 0:00:01]}  Qxg6 {[%clk 0:00:26]} 33. Qh4 {[%clk 0:00:01]}  a3 {[%clk 0:00:22]} 34. Ra1 {[%clk 0:00:01]}  Ra8 {[%clk 0:00:18]} 0-1


[Site "https://www.chess.com"]

[Event "Titled Tuesday Blitz December 13 Late 2022"]
[White "Domingo Nunez, Alejandro"]
[Black "Torres Boch, Jose Francisco"]
[WhiteFideId "22245561"]
[BlackFideId "2278383"]
[WhiteElo "2242"]
[BlackElo "2073"]
[Result "1/2-1/2"]
[Round "01"]
[TimeControl "180+1"]
[Date "2022.12.14"]
[WhiteClock "0:00:06"]
[BlackClock "0:00:19"]

1. Nf3 {[%clk 0:03:00]}  Nf6 {[%clk 0:02:58]} 2. g3 {[%clk 0:03:00]}  g6 {[%clk 0:02:59]} 3. b3 {[%clk 0:03:00]}  Bg7 {[%clk 0:02:59]} 4. Bb2 {[%clk 0:03:01]}  O-O {[%clk 0:02:59]} 5. Bg2 {[%clk 0:03:01]}  d5 {[%clk 0:03:00]} 6. O-O {[%clk 0:03:01]}  c5 {[%clk 0:03:00]} 7. d4 {[%clk 0:02:56]}  Ne4 {[%clk 0:02:58]} 8. Nfd2 {[%clk 0:02:49]}  Bxd4 {[%clk 0:02:43]} 9. Bxd4 {[%clk 0:02:36]}  cxd4 {[%clk 0:02:44]} 10. Nxe4 {[%clk 0:02:37]}  dxe4 {[%clk 0:02:45]} 11. Bxe4 {[%clk 0:02:37]}  Nc6 {[%clk 0:02:45]} 12. c3 {[%clk 0:02:31]}  e5 {[%clk 0:02:40]} 13. Qc2 {[%clk 0:02:15]}  Qb6 {[%clk 0:02:32]} 14. Na3 {[%clk 0:02:14]}  Be6 {[%clk 0:02:30]} 15. Bxc6 {[%clk 0:02:04]}  bxc6 {[%clk 0:02:24]} 16. cxd4 {[%clk 0:02:05]}  exd4 {[%clk 0:02:23]} 17. Nc4 {[%clk 0:02:05]}  Bxc4 {[%clk 0:02:22]} 18. Qxc4 {[%clk 0:02:05]}  c5 {[%clk 0:02:22]} 19. Rac1 {[%clk 0:02:05]}  Rfe8 {[%clk 0:02:21]} 20. Rfd1 {[%clk 0:02:01]}  Re5 {[%clk 0:02:17]} 21. Rc2 {[%clk 0:01:56]}  Rae8 {[%clk 0:02:16]} 22. Rdd2 {[%clk 0:01:51]}  h5 {[%clk 0:02:15]} 23. h4 {[%clk 0:01:49]}  Qf6 {[%clk 0:02:07]} 24. b4 {[%clk 0:01:46]}  cxb4 {[%clk 0:02:02]} 25. Qxd4 {[%clk 0:01:46]}  Qe7 {[%clk 0:01:59]} 26. e3 {[%clk 0:01:44]}  a5 {[%clk 0:01:59]} 27. Rc6 {[%clk 0:01:40]}  Re6 {[%clk 0:01:45]} 28. Rc5 {[%clk 0:01:39]}  Re5 {[%clk 0:01:45]} 29. Rc4 {[%clk 0:01:31]}  Qb7 {[%clk 0:01:40]} 30. Qd6 {[%clk 0:01:23]}  R5e6 {[%clk 0:01:37]} 31. Qd4 {[%clk 0:01:16]}  Re4 {[%clk 0:01:37]} 32. Qc5 {[%clk 0:01:16]}  R4e5 {[%clk 0:01:37]} 33. Qd6 {[%clk 0:01:12]}  R5e6 {[%clk 0:01:36]} 34. Qf4 {[%clk 0:01:11]}  Re4 {[%clk 0:01:35]} 35. Rxe4 {[%clk 0:01:11]}  Rxe4 {[%clk 0:01:35]} 36. Rd8+ {[%clk 0:01:08]}  Kg7 {[%clk 0:01:28]} 37. Qd6 {[%clk 0:01:08]}  Qe7 {[%clk 0:01:26]} 38. Qb8 {[%clk 0:01:09]}  Rc4 {[%clk 0:01:16]} 39. Rg8+ {[%clk 0:01:08]}  Kf6 {[%clk 0:01:16]} 40. Re8 {[%clk 0:01:02]}  Qc5 {[%clk 0:01:09]} 41. Qd8+ {[%clk 0:00:58]}  Kg7 {[%clk 0:00:56]} 42. Rg8+ {[%clk 0:00:58]}  Kh7 {[%clk 0:00:54]} 43. Rf8 {[%clk 0:00:57]}  Qf5 {[%clk 0:00:20]} 44. Rh8+ {[%clk 0:00:49]}  Kg7 {[%clk 0:00:19]} 45. Qf8+ {[%clk 0:00:45]}  Kf6 {[%clk 0:00:19]} 46. Qd8+ {[%clk 0:00:15]}  Kg7 {[%clk 0:00:19]} 47. Rg8+ {[%clk 0:00:15]}  Kh7 {[%clk 0:00:19]} 48. Rh8+ {[%clk 0:00:06]}  Kg7 {[%clk 0:00:19]} 1/2-1/2


[Site "https://www.chess.com"]

[Event "Titled Tuesday Blitz December 13 Late 2022"]
[White "Domingo Nunez, Ruben"]
[Black "Szyszylo, Rafal"]
[WhiteFideId "22245570"]
[BlackFideId "1109626"]
[WhiteElo "2406"]
[BlackElo "1981"]
[Result "0-1"]
[Round "01"]
[TimeControl "180+1"]
[Date "2022.12.14"]
[WhiteClock "0:00:10"]
[BlackClock "0:00:48"]

1. b3 {[%clk 0:02:55]}  d6 {[%clk 0:03:00]} 2. Bb2 {[%clk 0:02:55]}  Nd7 {[%clk 0:03:00]} 3. d4 {[%clk 0:02:55]}  Ngf6 {[%clk 0:03:00]} 4. Nf3 {[%clk 0:02:55]}  g6 {[%clk 0:02:59]} 5. c4 {[%clk 0:02:53]}  Bg7 {[%clk 0:02:59]} 6. Nc3 {[%clk 0:02:53]}  O-O {[%clk 0:02:59]} 7. e3 {[%clk 0:02:52]}  e5 {[%clk 0:02:58]} 8. Be2 {[%clk 0:02:52]}  Re8 {[%clk 0:02:58]} 9. O-O {[%clk 0:02:52]}  b6 {[%clk 0:02:58]} 10. d5 {[%clk 0:02:52]}  a5 {[%clk 0:02:57]} 11. Qc2 {[%clk 0:02:52]}  Nc5 {[%clk 0:02:56]} 12. Rae1 {[%clk 0:02:51]}  Bf5 {[%clk 0:02:54]} 13. Qd1 {[%clk 0:02:50]}  Nfe4 {[%clk 0:02:43]} 14. h3 {[%clk 0:02:37]}  Nxc3 {[%clk 0:02:42]} 15. Bxc3 {[%clk 0:02:38]}  h5 {[%clk 0:02:31]} 16. Bb2 {[%clk 0:02:08]}  h4 {[%clk 0:02:25]} 17. Ba3 {[%clk 0:02:04]}  Qf6 {[%clk 0:02:12]} 18. Bxc5 {[%clk 0:01:55]}  bxc5 {[%clk 0:02:09]} 19. Nd2 {[%clk 0:01:55]}  e4 {[%clk 0:02:03]} 20. Bg4 {[%clk 0:01:53]}  a4 {[%clk 0:01:58]} 21. Bxf5 {[%clk 0:01:52]}  gxf5 {[%clk 0:01:52]} 22. bxa4 {[%clk 0:01:52]}  Qb2 {[%clk 0:01:43]} 23. Re2 {[%clk 0:01:49]}  Qb4 {[%clk 0:01:39]} 24. g3 {[%clk 0:01:05]}  Qxa4 {[%clk 0:01:30]} 25. gxh4 {[%clk 0:01:01]}  Qxd1 {[%clk 0:01:26]} 26. Rxd1 {[%clk 0:01:02]}  Rxa2 {[%clk 0:01:26]} 27. Kf1 {[%clk 0:01:02]}  Rb8 {[%clk 0:01:21]} 28. f3 {[%clk 0:00:45]}  Rbb2 {[%clk 0:01:11]} 29. fxe4 {[%clk 0:00:22]}  Bc3 {[%clk 0:01:00]} 30. Nb1 {[%clk 0:00:08]}  Rxe2 {[%clk 0:00:58]} 31. Nxc3 {[%clk 0:00:09]}  Rf2+ {[%clk 0:00:58]} 32. Ke1 {[%clk 0:00:09]}  Rac2 {[%clk 0:00:56]} 33. exf5 {[%clk 0:00:10]}  Rh2 {[%clk 0:00:55]} 34. Rd3 {[%clk 0:00:10]}  Rh1# {[%clk 0:00:48]} 0-1


[Site "https://www.chess.com"]

[Event "Titled Tuesday Blitz December 13 Late 2022"]
[White "Dudzinski, Pawel"]
[Black "Goltsev, Dmitry"]
[WhiteFideId "1117890"]
[BlackFideId "24176710"]
[WhiteElo "2099"]
[BlackElo "2327"]
[Result "0-1"]
[Round "01"]
[TimeControl "180+1"]
[Date "2022.12.14"]
[WhiteClock "0:00:02"]
[BlackClock "0:02:36"]

1. e4 {[%clk 0:02:55]}  e6 {[%clk 0:03:00]} 2. c4 {[%clk 0:02:51]}  d5 {[%clk 0:03:01]} 3. cxd5 {[%clk 0:02:52]}  exd5 {[%clk 0:03:01]} 4. exd5 {[%clk 0:02:53]}  Qxd5 {[%clk 0:03:02]} 5. Nc3 {[%clk 0:02:52]}  Qd8 {[%clk 0:03:03]} 6. Qb3 {[%clk 0:02:52]}  Nf6 {[%clk 0:03:03]} 7. Bc4 {[%clk 0:02:53]}  Qe7+ {[%clk 0:03:01]} 8. Nge2 {[%clk 0:02:53]}  Nbd7 {[%clk 0:03:01]} 9. d4 {[%clk 0:02:54]}  Nb6 {[%clk 0:03:01]} 10. Bg5 {[%clk 0:02:51]}  h6 {[%clk 0:03:01]} 11. Bh4 {[%clk 0:02:45]}  Nxc4 {[%clk 0:03:00]} 12. Qxc4 {[%clk 0:02:44]}  c6 {[%clk 0:03:00]} 13. d5 {[%clk 0:02:21]}  Qb4 {[%clk 0:02:57]} 14. Qxb4 {[%clk 0:02:10]}  Bxb4 {[%clk 0:02:57]} 15. dxc6 {[%clk 0:01:59]}  bxc6 {[%clk 0:02:57]} 16. O-O-O {[%clk 0:01:56]}  Be6 {[%clk 0:02:55]} 17. Nd4 {[%clk 0:01:29]}  g5 {[%clk 0:02:55]} 18. Nxe6 {[%clk 0:01:21]}  fxe6 {[%clk 0:02:56]} 19. Bg3 {[%clk 0:01:19]}  Nd5 {[%clk 0:02:56]} 20. Nxd5 {[%clk 0:01:08]}  cxd5 {[%clk 0:02:57]} 21. a3 {[%clk 0:01:03]}  Ba5 {[%clk 0:02:56]} 22. b4 {[%clk 0:00:57]}  Bb6 {[%clk 0:02:57]} 23. Rhe1 {[%clk 0:00:58]}  Kf7 {[%clk 0:02:57]} 24. f3 {[%clk 0:00:51]}  Rac8+ {[%clk 0:02:57]} 25. Kb1 {[%clk 0:00:49]}  Rc4 {[%clk 0:02:58]} 26. Rc1 {[%clk 0:00:46]}  Rhc8 {[%clk 0:02:58]} 27. Rxc4 {[%clk 0:00:46]}  Rxc4 {[%clk 0:02:59]} 28. Rc1 {[%clk 0:00:47]}  Rxc1+ {[%clk 0:02:57]} 29. Kxc1 {[%clk 0:00:48]}  Kf6 {[%clk 0:02:58]} 30. Kc2 {[%clk 0:00:47]}  e5 {[%clk 0:02:58]} 31. a4 {[%clk 0:00:39]}  Kf5 {[%clk 0:02:57]} 32. Kd3 {[%clk 0:00:38]}  h5 {[%clk 0:02:56]} 33. a5 {[%clk 0:00:34]}  Bg1 {[%clk 0:02:56]} 34. h3 {[%clk 0:00:32]}  g4 {[%clk 0:02:47]} 35. hxg4+ {[%clk 0:00:26]}  hxg4 {[%clk 0:02:48]} 36. fxg4+ {[%clk 0:00:22]}  Ke6 {[%clk 0:02:48]} 37. b5 {[%clk 0:00:20]}  e4+ {[%clk 0:02:48]} 38. Ke2 {[%clk 0:00:20]}  Bc5 {[%clk 0:02:48]} 39. Bf2 {[%clk 0:00:20]}  d4 {[%clk 0:02:47]} 40. g5 {[%clk 0:00:17]}  Kf5 {[%clk 0:02:47]} 41. Be1 {[%clk 0:00:16]}  Kxg5 {[%clk 0:02:46]} 42. Bd2+ {[%clk 0:00:15]}  Kf5 {[%clk 0:02:46]} 43. Bc1 {[%clk 0:00:14]}  Ke5 {[%clk 0:02:43]} 44. Bh6 {[%clk 0:00:13]}  Kd5 {[%clk 0:02:42]} 45. g4 {[%clk 0:00:09]}  Kc4 {[%clk 0:02:42]} 46. b6 {[%clk 0:00:09]}  axb6 {[%clk 0:02:42]} 47. axb6 {[%clk 0:00:10]}  Bxb6 {[%clk 0:02:42]} 48. g5 {[%clk 0:00:11]}  d3+ {[%clk 0:02:42]} 49. Kd1 {[%clk 0:00:10]}  e3 {[%clk 0:02:42]} 50. g6 {[%clk 0:00:10]}  e2+ {[%clk 0:02:38]} 51. Ke1 {[%clk 0:00:10]}  Bd8 {[%clk 0:02:36]} 52. Be3 {[%clk 0:00:02]}  Bh4+ {[%clk 0:02:36]} 53. Bf2 {[%clk 0:00:02]}  Bf6 {[%clk 0:02:37]} 54. Be3 {[%clk 0:00:02]}  Kc3 {[%clk 0:02:36]} 55. Bd2+ {[%clk 0:00:02]}  Kc2 {[%clk 0:02:36]} 0-1


[Site "https://www.chess.com"]

[Event "Titled Tuesday Blitz December 13 Late 2022"]
[White "Dzierzak, Radoslaw"]
[Black "Kazakouski, Valery"]
[WhiteFideId "1161407"]
[BlackFideId "13507443"]
[WhiteElo "2430"]
[BlackElo "2785"]
[Result "0-1"]
[Round "01"]
[TimeControl "180+1"]
[Date "2022.12.14"]
[WhiteClock "0:00:17"]
[BlackClock "0:00:44"]

1. e4 {[%clk 0:02:59]}  e5 {[%clk 0:03:00]} 2. Nf3 {[%clk 0:02:59]}  Nc6 {[%clk 0:03:00]} 3. Bc4 {[%clk 0:02:59]}  Nf6 {[%clk 0:03:00]} 4. d3 {[%clk 0:03:00]}  Be7 {[%clk 0:02:58]} 5. O-O {[%clk 0:03:00]}  d6 {[%clk 0:02:56]} 6. a4 {[%clk 0:03:00]}  O-O {[%clk 0:02:56]} 7. c3 {[%clk 0:02:54]}  Na5 {[%clk 0:02:56]} 8. Ba2 {[%clk 0:02:54]}  c5 {[%clk 0:02:56]} 9. Re1 {[%clk 0:02:41]}  h6 {[%clk 0:02:55]} 10. Nbd2 {[%clk 0:02:41]}  Re8 {[%clk 0:02:55]} 11. Nf1 {[%clk 0:02:41]}  Bf8 {[%clk 0:02:55]} 12. Ng3 {[%clk 0:02:40]}  Nc6 {[%clk 0:02:55]} 13. h3 {[%clk 0:02:39]}  Be6 {[%clk 0:02:55]} 14. Bxe6 {[%clk 0:02:36]}  Rxe6 {[%clk 0:02:55]} 15. d4 {[%clk 0:02:32]}  d5 {[%clk 0:02:43]} 16. dxe5 {[%clk 0:01:49]}  Nxe4 {[%clk 0:02:42]} 17. Bf4 {[%clk 0:01:41]}  Nxg3 {[%clk 0:02:39]} 18. Bxg3 {[%clk 0:01:42]}  d4 {[%clk 0:02:35]} 19. Qb3 {[%clk 0:01:39]}  Na5 {[%clk 0:02:30]} 20. Qa2 {[%clk 0:01:37]}  d3 {[%clk 0:02:24]} 21. c4 {[%clk 0:01:38]}  Qb6 {[%clk 0:01:58]} 22. Rad1 {[%clk 0:01:33]}  Rd8 {[%clk 0:01:57]} 23. Re3 {[%clk 0:01:31]}  Qb4 {[%clk 0:01:54]} 24. Rexd3 {[%clk 0:01:27]}  Rxd3 {[%clk 0:01:53]} 25. Rxd3 {[%clk 0:01:27]}  Nxc4 {[%clk 0:01:52]} 26. Rb3 {[%clk 0:01:21]}  Qa5 {[%clk 0:01:47]} 27. Rxb7 {[%clk 0:01:22]}  Nb6 {[%clk 0:01:36]} 28. b3 {[%clk 0:01:00]}  Qa6 {[%clk 0:01:15]} 29. Rb8 {[%clk 0:00:53]}  Qd3 {[%clk 0:01:15]} 30. Qd2 {[%clk 0:00:49]}  Qxd2 {[%clk 0:00:53]} 31. Nxd2 {[%clk 0:00:50]}  Nd7 {[%clk 0:00:54]} 32. Ra8 {[%clk 0:00:40]}  Nxe5 {[%clk 0:00:54]} 33. Bxe5 {[%clk 0:00:39]}  Rxe5 {[%clk 0:00:55]} 34. Rxa7 {[%clk 0:00:39]}  Re1+ {[%clk 0:00:56]} 35. Kh2 {[%clk 0:00:38]}  Bd6+ {[%clk 0:00:54]} 36. g3 {[%clk 0:00:34]}  Re2 {[%clk 0:00:54]} 37. Nc4 {[%clk 0:00:27]}  Rxf2+ {[%clk 0:00:55]} 38. Kg1 {[%clk 0:00:28]}  Bxg3 {[%clk 0:00:55]} 39. a5 {[%clk 0:00:26]}  Ra2 {[%clk 0:00:47]} 40. Ra8+ {[%clk 0:00:21]}  Kh7 {[%clk 0:00:47]} 41. Rc8 {[%clk 0:00:18]}  f5 {[%clk 0:00:45]} 42. Rc6 {[%clk 0:00:17]}  f4 {[%clk 0:00:44]} 43. Kf1 {[%clk 0:00:17]}  f3 {[%clk 0:00:44]} 0-1


[Site "https://www.chess.com"]